fUST/lending_fUST_20240908
["ID","MTS","AMOUNT","RATE_DAILY","PERIOD"]
[337556785,1725810656208,-1342.13,0.00055342,120]
[337556786,1725810656218,-1412.24,0.00055342,120]
[337556787,1725810656229,-531.75,0.00055342,7]
[337556788,1725810656239,-500.0,0.00055342,120]
[337556789,1725810656249,-500.0,0.00055342,120]
[337556790,1725810656259,-1135.73,0.00055342,120]
[337556791,1725810656268,-500.0,0.00055342,120]
[337556792,1725810656284,-519.47,0.00055342,120]
[337556793,1725810656300,-500.0,0.00055342,120]
[337556794,1725810656311,-286.350914,0.00055342,120]
[337556795,1725810656321,-500.0,0.00055342,120]
[337556796,1725810656331,-286.350914,0.00055342,120]
[337556797,1725810656340,-286.350914,0.00055342,120]
[337556798,1725810656350,-286.350922,0.00055342,120]
[337556799,1725810656360,-1115.8,0.00055342,120]
[337556800,1725810656370,-1084.38,0.00055342,120]
[337556801,1725810656381,-38538.38,0.00055342,120]
[337556802,1725810656391,-500.0,0.00055342,120]
[337556803,1725810656401,-1587.37,0.00055342,21]
[337556804,1725810656412,-500.0,0.00055342,120]
[337556805,1725810656423,-500.0,0.00055342,120]
[337556806,1725810656434,-500.0,0.00055342,120]
[337556807,1725810656445,-500.0,0.00055342,120]
[337556808,1725810656457,-795.1,0.00055342,120]
[337556809,1725810656469,-500.0,0.00055342,120]
[337556810,1725810656479,-500.0,0.00055342,120]
[337556811,1725810656489,-500.0,0.00055342,120]
[337556812,1725810656499,-602.33,0.00055342,120]
[337556813,1725810656510,-1262.07,0.00055342,120]
[337556814,1725810656521,-1331.86,0.00055342,120]
[337556815,1725810656530,-500.0,0.00055342,120]
[337556816,1725810656540,-18350.37,0.00055342,120]
[337556817,1725810656550,-2172.45,0.00055342,120]
[337556818,1725810656563,-500.0,0.00055342,120]
[337556819,1725810656574,-500.0,0.00055342,120]
[337556820,1725810656583,-4591.93,0.00055342,120]
[337556821,1725810656594,-951.35,0.00055342,120]
[337556822,1725810656603,-500.0,0.00055342,120]
[337556823,1725810656614,-500.0,0.00055342,120]
[337556824,1725810656624,-500.0,0.00055342,120]
[337556825,1725810656635,-500.0,0.00055342,60]
[337556826,1725810656646,-500.0,0.00055342,120]
[337556827,1725810656656,-1411.68,0.00055342,120]
[337556828,1725810656666,-3170.16,0.00055342,120]
[337556829,1725810656679,-1492.45,0.00055342,120]
[337556830,1725810656690,-500.0,0.00055342,120]
[337556831,1725810656702,-500.0,0.00055342,120]
[337556832,1725810656711,-500.0,0.00055342,120]
[337556833,1725810656723,-500.0,0.00055342,120]
[337556834,1725810656736,-500.0,0.00055342,120]
[337556835,1725810656747,-500.0,0.00055342,120]
[337556836,1725810656757,-500.0,0.00055342,120]
[337556837,1725810656768,-500.0,0.00055342,120]
[337556838,1725810656779,-500.0,0.00055342,120]
[337556839,1725810656789,-813.05,0.00055342,120]
[337556840,1725810656800,-1426.4,0.00055342,120]
[337556841,1725810656809,-500.0,0.00055342,120]
[337556842,1725810656821,-500.0,0.00055342,120]
[337556843,1725810656832,-911.65,0.00055342,120]
[337556844,1725810656842,-500.0,0.00055342,120]
[337556845,1725810656854,-645.43,0.00055342,120]
[337556846,1725810656864,-8228.15,0.00055342,120]
[337556847,1725810656874,-500.0,0.00055342,120]
[337556848,1725810656884,-500.0,0.00055342,120]
[337556849,1725810656894,-2319.58,0.00055342,120]
[337556850,1725810656904,-500.0,0.00055342,120]
[337556851,1725810656914,-1350.2,0.00055342,120]
[337556852,1725810656925,-6450.45,0.00055342,120]
[337556853,1725810656935,-500.0,0.00055342,120]
[337556854,1725810656946,-501.52798247,0.00055342,120]
[337556855,1725810656956,-1000.0,0.00055342,120]
[337556856,1725810656967,-500.0,0.00055342,120]
[337556857,1725810656977,-500.0,0.00055342,120]
[337556858,1725810656987,-500.0,0.00055342,120]
[337556859,1725810656997,-954.11,0.00055342,120]
[337556860,1725810657007,-500.0,0.00055342,2]
[337556861,1725810657017,-7422.87,0.00055342,120]
[337556862,1725810657029,-1021.28,0.00055342,120]
[337556863,1725810657040,-500.0,0.00055342,120]
[337556864,1725810657052,-532.23021381,0.00055342,120]
[337556865,1725810657063,-500.0,0.00055342,120]
[337556866,1725810657074,-500.0,0.00055342,120]
[337556867,1725810657084,-559.9,0.00055342,120]
[337556868,1725810657093,-500.0,0.00055342,120]
[337556869,1725810657104,-510.46,0.00055342,120]
[337556870,1725810657114,-1268.94,0.00055342,120]
[337556871,1725810657123,-500.0,0.00055342,120]
[337556872,1725810657134,-906.28,0.00055342,120]
[337556873,1725810657146,-500.0,0.00055342,120]
[337556874,1725810657157,-666.22,0.00055342,120]
[337556875,1725810657167,-1240.7,0.00055342,120]
[337556876,1725810657177,-500.0,0.00055342,120]
[337556877,1725810657187,-500.0,0.00055342,120]
[337556878,1725810657199,-500.0,0.00055342,120]
[337556879,1725810657210,-500.0,0.0005557,120]
[337556880,1725810657220,-900.0,0.00055756,120]
[337556881,1725810657230,-500.0,0.00055813,120]
[337556882,1725810657240,-151.0,0.0005589,120]
[337556883,1725810657249,-151.0,0.0005589,120]
[337556884,1725810657259,-500.0,0.0005589,120]
[337556885,1725810657271,-500.0,0.0005589,120]
[337556886,1725810657282,-500.0,0.0005589,120]
[337556887,1725810657292,-500.0,0.0005589,120]
[337556888,1725810657302,-200.0,0.0005589,7]
[337556889,1725810657311,-594.38045138,0.0005589,120]
[337556890,1725810657321,-500.0,0.0005589,120]
[337556891,1725810657331,-500.0,0.0005589,120]
[337556892,1725810657344,-500.0,0.0005589,120]
[337556893,1725810657356,-500.0,0.0005589,120]
[337556894,1725810657366,-500.0,0.0005589,120]
[337556895,1725810657375,-829.66,0.0005589,120]
[337556896,1725810657387,-761.02,0.0005589,120]
[337556897,1725810657397,-1234.63,0.0005589,120]
[337556898,1725810657409,-500.0,0.0005589,120]
[337556899,1725810657419,-500.0,0.0005589,120]
[337556900,1725810657430,-500.0,0.0005589,120]
[337556901,1725810657440,-500.0,0.0005589,120]
[337556902,1725810657450,-500.0,0.0005589,120]
[337556903,1725810657460,-500.0,0.0005589,120]
[337556904,1725810657470,-500.0,0.0005589,120]
[337556905,1725810657479,-740.96,0.0005589,120]
[337556906,1725810657489,-293.16469201,0.0005589,120]
[337556907,1725810657499,-500.0,0.0005589,120]
[337556908,1725810657508,-706.78,0.0005589,120]
[337556909,1725810657517,-500.0,0.0005589,120]
[337556910,1725810657528,-500.0,0.0005589,120]
[337556911,1725810657540,-500.0,0.0005589,120]
[337556912,1725810657552,-520.78,0.0005589,120]
[337556913,1725810657564,-1551.53,0.0005589,120]
[337556914,1725810657575,-4494.21,0.0005589,120]
[337556915,1725810657585,-500.0,0.0005589,120]
[337556916,1725810657596,-500.0,0.0005589,120]
[337556917,1725810657608,-623.08,0.0005589,120]
[337556918,1725810657619,-526.04526131,0.0005589,120]
[337556919,1725810657629,-1103.4,0.0005589,120]
[337556920,1725810657641,-500.0,0.0005589,120]
[337556921,1725810657653,-450.43285032,0.0005589,120]
[337556922,1725810657664,-500.0,0.0005589,30]
[337556923,1725810657675,-500.0,0.0005589,120]
[337556924,1725810657686,-500.0,0.0005589,120]
[337556925,1725810657695,-1955.78,0.0005589,120]
[337556926,1725810657706,-737.6,0.0005589,120]
[337556927,1725810657715,-993.01,0.0005589,120]
[337556928,1725810657725,-500.0,0.0005589,120]
[337556929,1725810657736,-500.0,0.0005589,120]
[337556930,1725810657746,-500.0,0.0005589,120]
[337556931,1725810657758,-500.0,0.0005589,120]
[337556932,1725810657769,-659.54,0.0005589,120]
[337556933,1725810657779,-500.0,0.0005589,120]
[337556934,1725810657788,-500.0,0.0005589,120]
[337556935,1725810657798,-551.15269097,0.0005589,120]
[337556936,1725810657807,-500.0,0.0005589,120]
[337556937,1725810657817,-603.22,0.0005589,120]
[337556938,1725810657827,-500.0,0.0005589,120]
[337556939,1725810657836,-500.0,0.0005589,120]
[337556940,1725810657847,-189.59284541,0.0005589,120]
[337556941,1725810657858,-500.0,0.0005589,120]
[337556942,1725810657868,-500.0,0.0005589,120]
[337556943,1725810657877,-500.0,0.0005589,120]
[337556944,1725810657887,-500.0,0.0005589,120]
[337556945,1725810657898,-500.0,0.0005589,120]
[337556946,1725810657911,-500.0,0.0005589,120]
[337556947,1725810657921,-200.959998,0.0005589,120]
[337556948,1725810657931,-537.14,0.0005589,120]
[337556949,1725810657944,-930.48,0.0005589,120]
[337556950,1725810657953,-560.16,0.0005589,120]
[337556951,1725810657963,-200.960006,0.0005589,120]
[337556952,1725810657972,-540.63188747,0.0005589,120]
[337556953,1725810657982,-500.0,0.0005589,120]
[337556954,1725810657992,-500.0,0.0005589,120]
[337556955,1725810658001,-500.0,0.0005589,120]
[337556956,1725810658011,-635.26166489,0.0005589,120]
[337556957,1725810658020,-500.0,0.0005589,120]
[337556958,1725810658029,-953.87,0.0005589,120]
[337556959,1725810658038,-754.23,0.0005589,30]
[337556960,1725810658048,-500.0,0.0005589,120]
[337556961,1725810658058,-692.34,0.0005589,120]
[337556962,1725810658067,-500.0,0.0005589,120]
[337556963,1725810658077,-500.0,0.0005589,120]
[337556964,1725810658087,-500.0,0.0005589,120]
[337556965,1725810658100,-503.4066301,0.0005589,120]
[337556966,1725810658111,-500.0,0.0005589,120]
[337556967,1725810658121,-500.0,0.0005589,120]
[337556968,1725810658132,-500.0,0.0005589,120]
[337556969,1725810658142,-500.0,0.0005589,120]
[337556970,1725810658155,-500.0,0.0005589,120]
[337556971,1725810658165,-500.0,0.0005589,120]
[337556972,1725810658343,-567.87,0.0005589,120]
[337556973,1725810658355,-500.0,0.0005589,120]
[337556974,1725810658367,-500.0,0.0005589,120]
[337556975,1725810658377,-500.0,0.0005589,120]
[337556976,1725810658388,-500.0,0.0005589,120]
[337556977,1725810658401,-500.0,0.0005589,120]
[337556978,1725810658412,-500.0,0.0005589,120]
[337556979,1725810658422,-500.0,0.0005589,120]
[337556980,1725810658432,-500.0,0.0005589,120]
[337556981,1725810658442,-500.0,0.0005589,120]
[337556982,1725810658459,-500.0,0.0005589,120]
[337556983,1725810658469,-500.0,0.0005589,120]
[337556984,1725810658479,-500.0,0.0005589,120]
[337556985,1725810658488,-500.0,0.0005589,120]
[337556986,1725810658497,-500.0,0.0005589,120]
[337556987,1725810658506,-500.0,0.0005589,2]
[337556988,1725810658516,-500.0,0.0005589,120]
[337556989,1725810658525,-500.0,0.0005589,120]
[337556990,1725810658535,-500.0,0.0005589,120]
[337556991,1725810658544,-500.0,0.0005589,120]
[337556992,1725810658556,-500.0,0.0005589,120]
[337556993,1725810658565,-194.622411,0.0005589,120]
[337556994,1725810658574,-616.08,0.0005589,120]
[337556995,1725810658583,-826.36,0.0005589,120]
[337556996,1725810658593,-500.0,0.0005589,120]
[337556997,1725810658603,-194.622417,0.0005589,120]
[337556998,1725810658613,-500.0,0.0005589,120]
[337556999,1725810658622,-593.8,0.0005589,120]
[337557000,1725810658635,-591.23,0.0005589,120]
[337557001,1725810658644,-500.0,0.0005589,120]
[337557002,1725810658655,-690.09,0.0005589,120]
[337557003,1725810658664,-500.0,0.0005589,120]
[337557004,1725810658674,-500.0,0.0005589,120]
[337557005,1725810658683,-516.0024212,0.0005589,120]
[337557006,1725810658692,-500.0,0.0005589,120]
[337557007,1725810658704,-500.0,0.0005589,120]
[337557008,1725810658716,-500.0,0.0005589,120]
[337557009,1725810658727,-500.0,0.0005589,120]
[337557010,1725810658738,-500.0,0.0005589,120]
[337557011,1725810658749,-500.0,0.0005589,7]
[337557012,1725810658759,-500.0,0.0005589,120]
[337557013,1725810658769,-500.0,0.0005589,120]
[337557014,1725810658779,-497.45532791,0.0005589,120]
[337557015,1725810658789,-500.0,0.0005589,120]
[337557016,1725810658798,-500.0,0.0005589,120]
[337557017,1725810658807,-500.0,0.0005589,120]
[337557018,1725810658817,-1232.34,0.0005589,120]
[337557019,1725810658827,-500.0,0.0005589,120]
[337557020,1725810658836,-500.0,0.0005589,120]
[337557021,1725810658846,-500.0,0.0005589,30]
[337557022,1725810658855,-500.0,0.0005589,120]
[337557023,1725810658864,-500.0,0.0005589,120]
[337557024,1725810658875,-500.0,0.0005589,120]
[337557025,1725810658884,-151.0,0.0005589,120]
[337557026,1725810658894,-500.0,0.0005589,120]
[337557027,1725810658904,-2085.98,0.0005589,120]
[337557028,1725810658914,-6797.82,0.0005589,120]
[337557029,1725810658924,-500.0,0.0005589,120]
[337557030,1725810658933,-500.0,0.0005589,120]
[337557031,1725810658943,-500.0,0.0005589,120]
[337557032,1725810658953,-500.0,0.0005589,120]
[337557033,1725810658962,-2111.06,0.0005589,120]
[337557034,1725810658972,-500.0,0.0005589,120]
[337557035,1725810658982,-240.305016,0.0005589,120]
[337557036,1725810658993,-500.0,0.0005589,120]
[337557037,1725810659003,-500.0,0.0005589,120]
[337557038,1725810659013,-500.0,0.0005589,120]
[337557039,1725810659022,-1216.09,0.0005589,120]
[337557040,1725810659032,-500.0,0.0005589,120]
[337557041,1725810659042,-500.0,0.0005589,120]
[337557042,1725810659051,-2627.43,0.0005589,120]
[337557043,1725810659061,-500.0,0.0005589,120]
[337557044,1725810659071,-500.0,0.0005589,120]
[337557045,1725810659082,-500.0,0.0005589,120]
[337557046,1725810659092,-500.0,0.0005589,120]
[337557047,1725810659101,-502.56,0.0005589,120]
[337557048,1725810659112,-500.0,0.0005589,120]
[337557049,1725810659121,-500.0,0.0005589,120]
[337557050,1725810659132,-565.34,0.0005589,120]
[337557051,1725810659142,-500.0,0.0005589,120]
[337557052,1725810659151,-500.0,0.0005589,120]
[337557053,1725810659162,-500.0,0.0005589,120]
[337557054,1725810659171,-500.0,0.0005589,120]
[337557055,1725810659181,-817.73,0.0005589,120]
[337557056,1725810659191,-644.76,0.0005589,120]
[337557057,1725810659201,-500.0,0.0005589,120]
[337557058,1725810659211,-1057.61,0.0005589,120]
[337557059,1725810659221,-500.0,0.0005589,120]
[337557060,1725810659231,-500.0,0.0005589,120]
[337557061,1725810659240,-500.0,0.0005589,120]
[337557062,1725810659250,-500.0,0.0005589,120]
[337557063,1725810659259,-500.0,0.0005589,120]
[337557064,1725810659269,-200.0,0.0005589,120]
[337557065,1725810659279,-500.0,0.0005589,120]
[337557066,1725810659288,-803.08,0.0005589,120]
[337557067,1725810659297,-500.0,0.0005589,120]
[337557068,1725810659307,-1363.54,0.0005589,120]
[337557069,1725810659316,-560.18,0.0005589,120]
[337557070,1725810659326,-970.22,0.0005589,120]
[337557071,1725810659339,-502.0,0.0005589,120]
[337557072,1725810659348,-500.0,0.0005589,120]
[337557073,1725810659357,-500.0,0.0005589,120]
[337557074,1725810659366,-543.05,0.0005589,120]
[337557075,1725810659376,-500.0,0.0005589,120]
[337557076,1725810659385,-523.46,0.0005589,120]
[337557077,1725810659394,-500.0,0.0005589,120]
[337557078,1725810659404,-1539.57,0.0005589,120]
[337557079,1725810659415,-500.0,0.0005589,120]
[337557080,1725810659425,-500.0,0.0005589,120]
[337557081,1725810659435,-517.71,0.0005589,2]
[337557082,1725810659444,-500.0,0.0005589,120]
[337557083,1725810659455,-500.0,0.0005589,120]
[337557084,1725810659466,-500.0,0.0005589,120]
[337557085,1725810659475,-505.18,0.0005589,120]
[337557086,1725810659484,-255.441736,0.0005589,120]
[337557087,1725810659494,-500.0,0.0005589,120]
[337557088,1725810659503,-255.441732,0.0005589,120]
[337557089,1725810659513,-400.22750099,0.0005589,120]
[337557090,1725810659522,-500.0,0.0005589,120]
[337557091,1725810659531,-581.38,0.0005589,120]
[337557092,1725810659542,-3983.66,0.0005589,120]
[337557093,1725810659557,-847.06,0.0005589,120]
[337557094,1725810659567,-847.76,0.0005589,30]
[337557095,1725810659576,-500.0,0.0005589,120]
[337557096,1725810659585,-500.0,0.0005589,120]
[337557097,1725810659595,-500.0,0.0005589,120]
[337557098,1725810659604,-1009.48,0.0005589,120]
[337557099,1725810659613,-1047.16,0.0005589,120]
[337557100,1725810659622,-3225.59,0.0005589,120]
[337557101,1725810659633,-1093.08,0.0005589,120]
[337557102,1725810659643,-500.0,0.0005589,120]
[337557103,1725810659652,-151.0,0.0005589,120]
[337557104,1725810659661,-801.67,0.0005589,120]
[337557105,1725810659671,-500.0,0.0005589,120]
[337557106,1725810659680,-500.0,0.0005589,120]
[337557107,1725810659690,-1420.25,0.0005589,120]
[337557108,1725810659699,-500.0,0.0005589,120]
[337557109,1725810659708,-617.96,0.0005589,120]
[337557110,1725810659719,-500.0,0.0005589,120]
[337557111,1725810659728,-5403.1,0.0005589,120]
[337557112,1725810659737,-1046.2,0.0005589,120]
[337557113,1725810659746,-713.11,0.0005589,120]
[337557114,1725810659756,-500.0,0.0005589,120]
[337557115,1725810659765,-785.86,0.0005589,120]
[337557116,1725810659775,-524.52,0.0005589,120]
[337557117,1725810659784,-500.0,0.0005589,30]
[337557118,1725810659794,-2107.69,0.0005589,120]
[337557119,1725810659803,-1537.54,0.0005589,120]
[337557120,1725810659813,-10879.96,0.0005589,120]
[337557121,1725810659822,-1342.13,0.0005589,120]
[337557122,1725810659831,-1412.24,0.0005589,120]
[337557123,1725810659840,-531.75,0.0005589,7]
[337557124,1725810659849,-500.0,0.0005589,120]
[337557125,1725810659858,-500.0,0.0005589,120]
[337557126,1725810659867,-1135.73,0.0005589,120]
[337557127,1725810659876,-500.0,0.0005589,120]
[337557128,1725810659886,-519.47,0.0005589,120]
[337557129,1725810659896,-500.0,0.0005589,120]
[337557130,1725810659905,-500.0,0.0005589,120]
[337557131,1725810659915,-1115.8,0.0005589,120]
[337557132,1725810659924,-1084.38,0.0005589,120]
[337557133,1725810659934,-38538.38,0.0005589,120]
[337557134,1725810659943,-157.09213387,0.0005589,120]
[337557135,1725810659953,-1587.37,0.0005589,21]
[337557136,1725810659962,-500.0,0.0005589,120]
[337557137,1725810659972,-500.0,0.0005589,120]
[337557138,1725810659981,-500.0,0.0005589,120]
[337557139,1725810659990,-500.0,0.0005589,120]
[337557140,1725810659999,-795.1,0.0005589,120]
[337557141,1725810660008,-500.0,0.0005589,120]
[337557142,1725810660018,-500.0,0.0005589,120]
[337557143,1725810660027,-500.0,0.0005589,120]
[337557144,1725810660037,-602.33,0.0005589,120]
[337557145,1725810660046,-1262.07,0.0005589,120]
[337557146,1725810660056,-1331.86,0.0005589,120]
[337557147,1725810660066,-18350.37,0.0005589,120]
[337557148,1725810660075,-2172.45,0.0005589,120]
[337557149,1725810660083,-500.0,0.0005589,120]
[337557150,1725810660093,-4591.93,0.0005589,120]
[337557151,1725810660102,-500.0,0.0005589,120]
[337557152,1725810660112,-951.35,0.0005589,120]
[337557153,1725810660121,-500.0,0.0005589,120]
[337557154,1725810660131,-500.0,0.0005589,120]
[337557155,1725810660141,-500.0,0.0005589,120]
[337557156,1725810660151,-500.0,0.0005589,60]
[337557157,1725810660161,-500.0,0.0005589,120]
[337557158,1725810660171,-1411.68,0.0005589,120]
[337557159,1725810660180,-3170.16,0.0005589,120]
[337557160,1725810660190,-1492.45,0.0005589,120]
[337557161,1725810660201,-500.0,0.0005589,120]
[337557162,1725810660210,-500.0,0.0005589,120]
[337557163,1725810660219,-500.0,0.0005589,120]
[337557164,1725810660229,-500.0,0.0005589,120]
[337557165,1725810660238,-500.0,0.0005589,120]
[337557166,1725810660247,-500.0,0.0005589,120]
[337557167,1725810660256,-500.0,0.0005589,120]
[337557168,1725810660266,-500.0,0.0005589,120]
[337557169,1725810660275,-813.05,0.0005589,120]
[337557170,1725810660284,-1426.4,0.0005589,120]
[337557171,1725810660293,-280.88371113,0.0005589,120]
[337557172,1725810660303,-500.0,0.0005589,120]
[337557173,1725810660313,-911.65,0.0005589,120]
[337557174,1725810660322,-500.0,0.0005589,120]
[337557175,1725810660332,-645.43,0.0005589,120]
[337557176,1725810660343,-8228.15,0.0005589,120]
[337557177,1725810660355,-500.0,0.0005589,120]
[337557178,1725810660365,-500.0,0.0005589,120]
[337557179,1725810660375,-2319.58,0.0005589,120]
[337557180,1725810660386,-500.0,0.0005589,120]
[337557181,1725810660395,-1350.2,0.0005589,120]
[337557182,1725810660405,-6450.45,0.0005589,120]
[337557183,1725810660415,-500.0,0.0005589,120]
[337557184,1725810660428,-1000.0,0.0005589,120]
[337557185,1725810660440,-500.0,0.0005589,120]
[337557186,1725810660450,-500.0,0.0005589,120]
[337557187,1725810660461,-954.11,0.0005589,120]
[337557188,1725810660471,-500.0,0.0005589,120]
[337557189,1725810660484,-500.0,0.0005589,2]
[337557190,1725810660493,-7422.87,0.0005589,120]
[337557191,1725810660503,-1021.28,0.0005589,120]
[337557192,1725810660513,-500.0,0.0005589,120]
[337557193,1725810660522,-559.9,0.0005589,120]
[337557194,1725810660531,-500.0,0.0005589,120]
[337557195,1725810660541,-510.46,0.0005589,120]
[337557196,1725810660552,-1268.94,0.0005589,120]
[337557197,1725810660563,-906.28,0.0005589,120]
[337557198,1725810660572,-500.0,0.0005589,120]
[337557199,1725810660581,-500.0,0.0005589,120]
[337557200,1725810660591,-666.22,0.0005589,120]
[337557201,1725810660601,-1240.7,0.0005589,120]
[337557202,1725810660610,-500.0,0.0005589,120]
[337557203,1725810660619,-500.0,0.0005589,120]
[337557204,1725810660630,-500.0,0.0005589,120]
[337557205,1725810660639,-501.55856227,0.00056142,15]
[337557206,1725810660648,-264.025296,0.00056438,120]
[337557207,1725810660658,-500.0,0.00056438,120]
[337557208,1725810660667,-500.0,0.00056438,120]
[337557209,1725810660677,-500.0,0.00056438,120]
[337557210,1725810660686,-500.0,0.00056438,120]
[337557211,1725810660697,-200.0,0.00056438,7]
[337557212,1725810660707,-500.0,0.00056438,120]
[337557213,1725810660717,-500.0,0.00056438,120]
[337557214,1725810660728,-500.0,0.00056438,120]
[337557215,1725810660738,-500.0,0.00056438,120]
[337557216,1725810660747,-500.0,0.00056438,120]
[337557217,1725810660757,-829.66,0.00056438,120]
[337557218,1725810660767,-761.02,0.00056438,120]
[337557219,1725810660777,-1234.63,0.00056438,120]
[337557220,1725810660786,-500.0,0.00056438,120]
[337557221,1725810660796,-500.0,0.00056438,120]
[337557222,1725810660805,-500.0,0.00056438,120]
[337557223,1725810660816,-500.0,0.00056438,120]
[337557224,1725810660827,-500.0,0.00056438,120]
[337557225,1725810660838,-500.0,0.00056438,120]
[337557226,1725810660849,-740.96,0.00056438,120]
[337557227,1725810660858,-344.15286015,0.00056438,120]
[337557228,1725810660868,-706.78,0.00056438,120]
[337557229,1725810660882,-500.0,0.00056438,120]
[337557230,1725810660891,-500.0,0.00056438,120]
[337557231,1725810660901,-500.0,0.00056438,120]
[337557232,1725810660912,-520.78,0.00056438,120]
[337557233,1725810660921,-1551.53,0.00056438,120]
[337557234,1725810660931,-4494.21,0.00056438,120]
[337557235,1725810660941,-500.0,0.00056438,120]
[337557236,1725810660951,-500.0,0.00056438,120]
[337557237,1725810660963,-623.08,0.00056438,120]
[337557238,1725810660973,-1103.4,0.00056438,120]
[337557239,1725810660982,-445.18816074,0.00056438,120]
[337557240,1725810660992,-500.0,0.00056438,30]
[337557241,1725810661002,-500.0,0.00056438,120]
[337557242,1725810661011,-500.0,0.00056438,120]
[337557243,1725810661021,-1955.78,0.00056438,120]
[337557244,1725810661031,-737.6,0.00056438,120]
[337557245,1725810661041,-993.01,0.00056438,120]
[337557246,1725810661051,-500.0,0.00056438,120]
[337557247,1725810661060,-500.0,0.00056438,120]
[337557248,1725810661070,-500.0,0.00056438,120]
[337557249,1725810661079,-500.0,0.00056438,120]
[337557250,1725810661089,-659.54,0.00056438,120]
[337557251,1725810661099,-500.0,0.00056438,120]
[337557252,1725810661108,-500.0,0.00056438,120]
[337557253,1725810661117,-500.0,0.00056438,120]
[337557254,1725810661126,-603.22,0.00056438,120]
[337557255,1725810661136,-500.0,0.00056438,120]
[337557256,1725810661146,-500.0,0.00056438,120]
[337557257,1725810661155,-500.0,0.00056438,120]
[337557258,1725810661173,-379.9666408,0.00056438,120]
[337557259,1725810661183,-500.0,0.00056438,120]
[337557260,1725810661193,-500.0,0.00056438,120]
[337557261,1725810661202,-500.0,0.00056438,120]
[337557262,1725810661212,-500.0,0.00056438,120]
[337557263,1725810661222,-537.14,0.00056438,120]
[337557264,1725810661231,-930.48,0.00056438,120]
[337557265,1725810661241,-560.16,0.00056438,120]
[337557266,1725810661251,-500.0,0.00056438,120]
[337557267,1725810661260,-500.0,0.00056438,120]
[337557268,1725810661270,-500.0,0.00056438,120]
[337557269,1725810661279,-500.0,0.00056438,120]
[337557270,1725810661288,-953.87,0.00056438,120]
[337557271,1725810661298,-754.23,0.00056438,30]
[337557272,1725810661308,-500.0,0.00056438,120]
[337557273,1725810661317,-692.34,0.00056438,120]
[337557274,1725810661327,-500.0,0.00056438,120]
[337557275,1725810661336,-500.0,0.00056438,120]
[337557276,1725810661346,-500.0,0.00056438,120]
[337557277,1725810661355,-500.0,0.00056438,120]
[337557278,1725810661366,-500.0,0.00056438,120]
[337557279,1725810661378,-500.0,0.00056438,120]
[337557280,1725810661389,-500.0,0.00056438,120]
[337557281,1725810661399,-500.0,0.00056438,120]
[337557282,1725810661411,-500.0,0.00056438,120]
[337557283,1725810661423,-567.87,0.00056438,120]
[337557284,1725810661433,-500.0,0.00056438,120]